bitfinex-derivatives/quotes_SOLF0:USTF0_20220108
["timestamp","ask_amount","ask_price","bid_price","bid_amount"]
[1641674682119,64.44479,138.81,138.7,9.22518523]
[1641674682518,64.44479,138.81,138.72,4.0]
[1641674682717,64.44479,138.81,138.7,9.22518523]
[1641674683018,70.59379,138.81,138.73,2.88118523]
[1641674683420,70.59379,138.81,138.71,2.88118523]
[1641674683819,4.0,138.74,138.62,1.801]
[1641674684020,55.32958,138.72,138.63,14.19371483]
[1641674684619,55.32958,138.72,138.6,39.22844557]
[1641674684819,55.32958,138.72,138.61,1.802]
[1641674685019,55.32958,138.72,138.6,1.802]
[1641674685419,55.32958,138.72,138.61,4.0]
[1641674685621,55.32958,138.72,138.61,2.81369462]
[1641674686020,27.66479,138.68,138.61,2.81369462]
[1641674686821,27.66479,138.72,138.61,2.81369462]
[1641674687020,27.66479,138.72,138.61,4.61569462]
[1641674687220,27.66479,138.72,138.62,4.0]
[1641674687422,67.3015,138.74,138.63,4.0]
[1641674687622,44.78,138.8,138.67,4.0]
[1641674687623,36.78,138.8,138.67,4.0]
[1641674687921,27.66479,138.78,138.67,8.098]
[1641674688522,27.66479,138.78,138.68,2.81369462]
[1641674689923,27.66479,138.73,138.68,2.81369462]
[1641674691628,27.66479,138.73,138.67,8.098]
[1641674691830,33.30779,138.73,138.67,8.098]
[1641674692029,27.66479,138.69,138.67,8.098]
[1641674692229,35.88579,138.69,138.67,8.098]
[1641674692629,8.221,138.69,138.68,2.8333238]
[1641674692830,27.66479,138.73,138.68,2.8333238]
[1641674694031,55.32958,138.73,138.68,2.8333238]
[1641674696037,27.66479,138.69,138.68,2.8333238]
[1641674696838,27.66479,138.73,138.68,2.8333238]
[1641674697238,36.78,138.79,138.68,2.8333238]
[1641674697437,36.78,138.79,138.68,6.8333238]
[1641674698038,27.66479,138.78,138.68,34.4981138]
[1641674698238,27.66479,138.78,138.68,30.4981138]
[1641674698943,27.66479,138.78,138.69,2.8333238]
[1641674699338,27.66479,138.78,138.69,5.10897754]
[1641674699539,27.66479,138.78,138.69,13.64697754]
[1641674699740,27.66479,138.78,138.7,2.27565374]
[1641674699943,27.66479,138.71,138.7,2.27565374]
[1641674701144,27.66479,138.71,138.7,5.10897754]
[1641674701541,27.66479,138.71,138.7,2.8333238]
[1641674701942,27.66479,138.71,138.7,5.10942661]
[1641674702341,33.92979,138.71,138.7,2.27610281]
[1641674702540,33.92979,138.71,138.65,39.22844557]
[1641674702743,4.0,138.7,138.65,5.22844557]
[1641674702940,4.0,138.7,138.64,10.86870904]
[1641674703140,4.0,138.69,138.64,10.86870904]
[1641674703543,9.549,138.69,138.64,9.04e-06]
[1641674703942,5.549,138.69,138.55,60.46062742]
[1641674704143,47.13567855,138.65,138.55,60.46062742]
[1641674704344,55.92067855,138.65,138.55,60.46062742]
[1641674704945,55.92067855,138.65,138.56,1.80088964]
[1641674705144,47.13567855,138.65,138.56,1.80088964]
[1641674705343,19.47088855,138.65,138.56,1.80088964]
[1641674705542,70.7977,138.68,138.56,1.80088964]
[1641674705745,70.7977,138.68,138.57,4.0]
[1641674706043,98.46249,138.68,138.59,27.66479]
[1641674706643,98.46249,138.68,138.6,1.80088964]
[1641674707046,98.46249,138.68,138.6,5.80088964]
[1641674707244,5.08749399,138.72,138.6,1.80088964]
[1641674707448,5.08749399,138.72,138.66,4.0]
[1641674707649,5.08749399,138.74,138.66,5.36]
[1641674708047,5.08749399,138.74,138.67,1.80088964]
[1641674708747,27.66479,138.76,138.67,1.80088964]
[1641674711451,27.66479,138.76,138.67,5.80088964]
[1641674711653,9.29299,138.76,138.72,4.0]
[1641674711853,5.08749399,138.8,138.75,4.0]
[1641674712052,5.08749399,138.8,138.77,27.66479]
[1641674712654,5.08749399,138.87,138.78,1.80088964]
[1641674712855,5.08749399,138.87,138.78,8.04088964]
[1641674713054,24.55916007,138.86,138.78,8.04088964]
[1641674713555,24.55916007,138.86,138.79,1.80088964]
[1641674713956,24.55916007,138.86,138.75,27.66479]
[1641674714159,52.22395007,138.86,138.75,27.66479]
[1641674714356,27.66479,138.86,138.76,1.79584588]
[1641674714856,29.64665406,138.87,138.76,1.79584588]
[1641674715060,24.55916007,138.85,138.76,1.79584588]
[1641674715459,4.0,138.84,138.76,1.79584588]
[1641674715657,4.0,138.83,138.76,1.79584588]
[1641674715858,4.0,138.82,138.73,15.2252051]
[1641674716158,27.66479,138.79,138.73,15.2252051]
[1641674716358,27.66479,138.79,138.74,1.79718763]
[1641674716564,24.55916007,138.81,138.74,5.79718763]
[1641674716761,24.55916007,138.81,138.74,11.37018763]
[1641674716959,5.08749399,138.84,138.74,11.37018763]
[1641674717159,5.08749399,138.84,138.76,4.0]
[1641674717361,5.08749399,138.84,138.79,4.0]
[1641674717563,5.08749399,138.84,138.79,6.947]
[1641674717762,69.11759399,138.89,138.8,1.79718763]
[1641674718161,24.55383527,138.88,138.81,27.66479]
[1641674718862,24.55383527,138.88,138.83,4.0]
[1641674719061,5.08749399,138.92,138.83,12.461]
[1641674719263,5.08749399,138.92,138.83,8.461]
[1641674719461,5.08749399,138.92,138.84,1.79414535]
[1641674719863,68.99919399,138.97,138.84,1.79414535]
[1641674720063,68.99919399,138.97,138.86,4.0]
[1641674720262,96.66398399,138.97,138.89,27.66479]
[1641674720563,5.08749399,138.97,138.9,4.0]
[1641674720963,10.74,138.98,138.9,4.0]
[1641674721162,10.74,138.98,138.9,5.799]
[1641674721363,10.74,138.98,138.91,1.79414535]
[1641674721962,10.74,138.98,138.89,34.70379]
[1641674722162,27.66479,138.97,138.89,38.70379]
[1641674722364,27.66479,138.97,138.9,1.799]
[1641674722563,27.66479,138.97,138.9,3.59135447]
[1641674722963,27.66479,138.97,138.91,4.0]
[1641674723163,27.66479,138.97,138.92,1.799]
[1641674723363,27.66479,138.97,138.92,13.983]
[1641674723563,10.74,138.98,138.92,9.983]
[1641674723863,10.74,138.98,138.92,8.184]
[1641674724267,27.66479,138.95,138.89,27.66479]
[1641674724465,33.99679,138.95,138.89,27.66479]
[1641674724866,6.332,138.95,138.89,27.66479]
[1641674725065,24.54544711,138.94,138.89,27.66479]
[1641674725468,27.66479,138.97,138.89,27.66479]
[1641674726068,16.66509697,138.96,138.9,2.7600541]
[1641674726368,27.66479,138.97,138.9,2.7600541]
[1641674727868,31.66479,138.97,138.9,2.7600541]
[1641674728269,31.66479,138.97,138.89,27.66479]
[1641674729472,27.66479,138.97,138.89,27.66479]
[1641674729771,27.66479,138.97,138.9,4.09080754]
[1641674730372,27.66479,138.94,138.85,4.09080754]
[1641674730771,4.0,138.93,138.84,4.09080754]
[1641674730972,27.66479,138.94,138.88,4.0]
[1641674731172,27.66479,138.94,138.88,10.42]
[1641674731374,27.66479,138.94,138.88,6.42]
[1641674731574,27.66479,138.94,138.89,4.09080754]
[1641674731772,27.66479,138.97,138.89,4.09080754]
[1641674732374,27.66479,138.97,138.89,31.75559754]
[1641674732573,27.66479,138.97,138.89,4.09080754]
[1641674733173,27.66479,138.97,138.85,4.09080754]
[1641674733574,31.66479,138.97,138.9,4.09080754]
[1641674733776,27.66479,138.97,138.9,4.09080754]
[1641674733974,27.66479,138.97,138.86,4.0]
[1641674734174,27.66479,138.97,138.85,5.799]
[1641674734374,27.66479,138.97,138.87,31.75559754]
[1641674734976,27.66479,138.97,138.88,4.09080754]
[1641674735578,31.66479,138.97,138.88,4.09080754]
[1641674735779,4.0,138.94,138.88,4.09080754]
[1641674735979,6.28,138.95,138.88,4.09080754]
[1641674736178,4.0,138.94,138.88,4.09080754]
[1641674736380,27.66479,138.89,138.84,28.33673894]
[1641674736580,39.94179,138.89,138.84,28.33673894]
[1641674736781,4.0,138.88,138.83,4.09080754]
[1641674737181,4.0,138.88,138.8,4.09080754]
[1641674737381,39.94179,138.89,138.8,4.09080754]
[1641674737780,39.94179,138.89,138.79,4.09080754]
[1641674737980,27.66479,138.89,138.79,4.09080754]
[1641674738780,27.66479,138.89,138.79,32.34127844]
[1641674739081,27.66479,138.89,138.79,28.34127844]
[1641674739281,27.66479,138.89,138.8,32.34127844]
[1641674739481,27.66479,138.89,138.81,4.0]
[1641674739781,27.66479,138.89,138.81,4.09080754]
[1641674740385,27.66479,138.86,138.8,4.09080754]
[1641674741383,27.66479,138.86,138.78,4.09080754]
[1641674741784,4.0,138.83,138.78,4.09080754]
[1641674741982,10.727,138.83,138.78,4.09080754]
[1641674742184,10.727,138.83,138.75,4.09080754]
[1641674742382,27.66479,138.8,138.75,4.09080754]
[1641674742783,4.0,138.79,138.75,4.09080754]
[1641674743184,4.0,138.76,138.75,7.54e-06]
[1641674743383,11.607,138.76,138.72,15.2252051]
[1641674743584,4.0,138.75,138.69,40.26321587]
[1641674743784,40.78,138.74,138.7,15.21418343]
[1641674743983,11.607,138.76,138.7,15.21418343]
[1641674744384,27.66479,138.73,138.7,15.21418343]
[1641674744785,27.66479,138.73,138.71,4.0954705]
[1641674744985,27.66479,138.73,138.67,36.26321587]
[1641674745188,38.35779,138.73,138.63,27.66479]
[1641674745385,38.35779,138.73,138.61,39.08149762]
[1641674746085,4.0,138.71,138.61,39.08149762]
[1641674746284,34.35779,138.73,138.59,39.08149762]
[1641674746487,27.66479,138.64,138.62,4.0965905]
[1641674746688,34.26979,138.64,138.62,4.0965905]
[1641674747089,34.26979,138.64,138.59,30.67787544]
[1641674747287,4.0,138.61,138.55,3.88991486]
[1641674747487,10.076,138.61,138.55,3.88991486]
[1641674747689,10.076,138.61,138.56,3.88991486]
[1641674747886,32.05704918,138.64,138.55,27.74505886]
[1641674748087,6.501,138.61,138.55,13.92505886]
[1641674748489,27.66479,138.56,138.55,13.92505886]
[1641674748689,27.66479,138.56,138.51,60.46062742]
[1641674749089,27.66479,138.56,138.52,0.82003131]
[1641674749488,36.78,138.64,138.48,2.48482131]
[1641674749688,1.51517869,138.62,138.49,4.28882131]
[1641674749889,71.85257869,138.63,138.49,1.804]
[1641674750091,1.51517869,138.62,138.48,2.48482131]
[1641674750291,70.3374,138.63,138.49,2.48482131]
[1641674750490,27.66479,138.61,138.5,29.46879]
[1641674750788,29.17996869,138.61,138.5,32.77334438]
[1641674750988,29.17996869,138.61,138.5,28.48452307]
[1641674751189,1.51517869,138.59,138.51,0.81973307]
[1641674751392,1.51517869,138.58,138.51,0.81973307]
[1641674751590,1.51517869,138.58,138.51,3.30455438]
[1641674751793,1.51517869,138.58,138.51,0.81973307]
[1641674752393,31.66479,138.61,138.51,0.81973307]
[1641674753194,1.51517869,138.56,138.51,0.81973307]
[1641674753794,27.66479,138.61,138.51,3.30455438]
[1641674753994,1.51517869,138.65,138.55,2.48482131]
[1641674754194,4.0,138.7,138.55,2.48482131]
[1641674754195,66.706,138.7,138.55,9.95182131]
[1641674754394,66.706,138.7,138.56,2.62273307]
[1641674754595,27.66479,138.67,138.56,2.62273307]
[1641674754796,1.51517869,138.64,138.56,0.81973307]
[1641674754997,1.51517869,138.64,138.57,0.81973307]
[1641674755197,37.99679,138.67,138.57,0.81973307]
[1641674755398,1.51517869,138.63,138.57,0.81973307]
[1641674755600,1.51517869,138.63,138.53,0.81973307]
[1641674755797,1.51517869,138.6,138.53,0.81973307]
[1641674755998,1.51517869,138.6,138.52,0.81973307]
[1641674756197,4.0,138.66,138.52,0.81973307]
[1641674756397,1.51517869,138.6,138.52,0.81973307]
[1641674756597,4.0,138.62,138.52,0.81973307]
[1641674756998,1.51517869,138.58,138.52,0.81973307]
[1641674757598,68.1855,138.62,138.52,0.81973307]
[1641674757801,1.51517869,138.58,138.49,0.81973307]
[1641674757999,1.51517869,138.56,138.49,0.81973307]
[1641674759400,27.66479,138.6,138.49,0.81973307]
[1641674759600,1.51517869,138.58,138.49,3.30455438]
[1641674759802,27.66479,138.6,138.49,0.81973307]
[1641674760101,27.66479,138.6,138.5,0.81973307]
[1641674760300,1.51517869,138.53,138.5,0.81973307]
[1641674760503,1.51517869,138.51,138.5,0.81973307]
[1641674760902,29.17996869,138.52,138.5,0.81973307]
[1641674761102,27.66479,138.52,138.47,0.81973307]
[1641674761503,1.51517869,138.48,138.44,0.81973307]
[1641674761702,1.51517869,138.45,138.44,0.81973307]
[1641674761903,1.51517869,138.48,138.44,0.81973307]
[1641674762102,1.51517869,138.49,138.44,0.81973307]
[1641674762503,27.66479,138.52,138.44,0.81973307]
[1641674762504,1.51517869,138.47,138.44,0.81973307]
[1641674762801,1.51517869,138.45,138.44,0.81973307]
[1641674763502,1.51517869,138.45,138.4,0.81973307]
[1641674763702,12.7,138.49,138.44,0.81973307]
[1641674763903,1.51517869,138.45,138.44,0.81973307]
[1641674764105,1.51517869,138.45,138.39,0.81973307]
[1641674764303,6.01279229,138.49,138.39,0.81973307]
[1641674764504,27.66479,138.48,138.39,0.81973307]
[1641674765004,24.61595482,138.47,138.39,0.81973307]
[1641674765204,24.61595482,138.47,138.38,4.0]
[1641674765404,24.61595482,138.47,138.4,0.81973307]
[1641674766005,24.61595482,138.47,138.34,0.81973307]
[1641674766408,44.61595482,138.47,138.33,0.81973307]
[1641674766605,27.66479,138.41,138.33,0.81973307]
[1641674766807,35.75579,138.41,138.33,4.0]
[1641674767206,35.75579,138.41,138.34,0.81973307]
[1641674768210,35.75579,138.41,138.33,0.81973307]
[1641674768408,35.75579,138.41,138.33,4.81973307]
[1641674768606,67.1279,138.42,138.4,4.0]
[1641674768808,107.3607,138.46,138.4,4.0]
[1641674769007,36.78,138.46,138.41,0.81973307]
[1641674769608,24.61657624,138.45,138.41,11.613]
[1641674769811,24.61657624,138.45,138.41,7.613]
[1641674770911,24.61657624,138.45,138.33,10.81503344]
[1641674771513,24.61657624,138.45,138.34,0.82062067]
[1641674771713,30.17357624,138.45,138.34,0.82062067]
[1641674771914,5.557,138.45,138.35,4.0]
[1641674772515,24.61657624,138.44,138.32,27.66479]
[1641674772716,52.28136624,138.44,138.32,27.66479]
[1641674772916,89.06136624,138.44,138.33,0.82077426]
[1641674773116,52.28136624,138.44,138.34,4.0]
[1641674773317,24.61657624,138.43,138.33,0.82077426]
[1641674774617,24.61657624,138.43,138.34,4.0]
[1641674774917,24.61657624,138.43,138.35,0.82077426]
[1641674775921,24.61657624,138.43,138.3,25.97304634]
[1641674776121,64.2931,138.42,138.32,15.14132743]
[1641674776322,71.9041,138.42,138.32,15.14132743]
[1641674776722,27.66479,138.34,138.32,15.14132743]
[1641674777122,27.66479,138.34,138.29,15.9803663]
[1641674777323,27.66479,138.34,138.28,15.14132743]
[1641674777523,27.66479,138.36,138.28,15.14132743]
[1641674777725,209.7257,138.42,138.3,0.82092928]
[1641674777922,209.7257,138.42,138.32,4.0]
[1641674778324,24.62512726,138.41,138.3,8.11592928]
[1641674778524,24.62512726,138.41,138.3,12.11592928]
[1641674778722,27.66479,138.34,138.31,0.82092928]
[1641674779724,27.66479,138.34,138.3,15.96225671]
[1641674780326,27.66479,138.34,138.31,0.82092928]
[1641674780826,27.66479,138.34,138.28,4.0]
[1641674781225,27.66479,138.34,138.29,0.82102875]
[1641674781725,27.66479,138.34,138.28,15.96235618]
[1641674782126,27.66479,138.34,138.28,15.14132743]
[1641674782526,24.63700326,138.33,138.28,15.14132743]
[1641674782729,27.66479,138.29,138.26,29.97304634]
[1641674782928,35.48879,138.29,138.26,29.97304634]
[1641674783128,35.48879,138.29,138.27,0.82121974]
[1641674784532,35.48879,138.29,138.25,15.14132743]
[1641674785432,35.48879,138.29,138.23,19.14132743]
[1641674785632,35.48879,138.29,138.26,0.82129591]
[1641674785831,35.48879,138.29,138.24,0.82129591]
[1641674786433,35.48879,138.29,138.24,15.96262334]
[1641674786933,35.48879,138.29,138.25,0.82129591]
[1641674787334,35.48879,138.29,138.24,15.14132743]
[1641674787535,35.48879,138.29,138.25,1.99539314]
[1641674787937,24.64406337,138.28,138.25,1.99539314]
[1641674788340,35.48879,138.29,138.24,15.14132743]
[1641674788538,55.48879,138.29,138.21,40.15342225]
[1641674788742,24.64498045,138.28,138.22,15.22067953]
[1641674788939,12.32392025,138.28,138.22,15.22067953]
[1641674789339,47.66479,138.29,138.23,0.82149315]
[1641674789739,47.66479,138.29,138.19,31.15342225]
[1641674789939,55.49679,138.29,138.19,31.15342225]
[1641674790139,8.0,138.27,138.19,31.15342225]
[1641674790340,8.0,138.27,138.19,16.33222225]
[1641674790542,8.0,138.27,138.15,71.29234633]
[1641674790742,27.66479,138.19,138.15,10.83171891]
[1641674790943,34.71379,138.19,138.15,10.83171891]
[1641674791346,34.71379,138.19,138.16,0.82178233]
[1641674791843,54.71379,138.19,138.09,26.46062742]
[1641674792644,27.66479,138.12,138.09,26.46062742]
[1641674793044,27.66479,138.12,138.05,149.47927548]
[1641674793245,27.66479,138.12,138.1,4.82214884]
[1641674793445,27.66479,138.12,138.1,0.82214884]
[1641674793649,27.66479,138.12,138.0,97.5126735]
[1641674794045,27.66479,138.12,138.01,4.0]
[1641674794445,98.63869,138.12,138.0,101.5126735]
[1641674794644,27.66479,138.05,138.0,101.5126735]
[1641674794847,35.36879,138.05,138.01,10.83171891]
[1641674796146,35.36879,138.05,137.96,10.83171891]
[1641674796349,20.0,138.03,137.96,10.83171891]
[1641674796551,35.36879,138.05,137.96,4.83171891]
[1641674796748,27.66479,137.97,137.88,27.66479]
[1641674796946,33.54779,137.97,137.89,4.0]
[1641674797147,33.54779,137.97,137.92,4.0]
[1641674797347,33.54779,137.97,137.95,4.0]
[1641674797547,69.9906,138.04,137.9,4.0]
[1641674797749,77.9906,138.04,137.89,4.0]
[1641674797950,77.9906,138.04,137.95,4.0]
[1641674798148,77.9906,138.04,137.97,4.0]
[1641674798149,68.9003,138.03,137.97,4.0]
[1641674798350,68.9003,138.03,137.99,4.0]
[1641674798549,69.9906,138.04,137.99,5.904]
[1641674798749,69.9906,138.04,137.99,9.904]
[1641674798950,27.66479,138.07,138.01,4.0]
[1641674799150,131.9139,138.12,138.03,4.0]
[1641674799451,67.0624,138.12,138.06,4.0]
[1641674799753,20.0,138.17,138.06,11.514]
[1641674799950,69.3555,138.18,138.08,4.0]
[1641674800350,24.66958616,138.17,138.06,7.514]
[1641674800550,20.0,138.15,138.06,7.514]
[1641674800751,27.66479,138.09,138.0,4.0]
[1641674801151,27.66479,138.11,137.93,1.81]
[1641674801356,20.0,138.08,137.92,31.66479]
[1641674801554,26.941,138.08,137.92,31.66479]
[1641674802052,26.941,138.08,137.99,4.0]
[1641674802252,14.941,138.08,138.01,4.0]
[1641674802753,27.66479,138.06,137.93,4.0]
[1641674802952,27.66479,138.06,137.98,4.0]
[1641674803153,27.66479,138.06,137.97,4.0]
[1641674803354,33.82379,138.06,137.97,4.0]
[1641674803554,27.66479,138.06,138.04,4.0]
[1641674803756,70.3478,138.09,138.04,10.246]
[1641674803957,70.3478,138.09,138.04,6.246]
[1641674804658,27.66479,138.07,138.04,6.246]
[1641674804857,27.66479,138.07,137.98,4.0]
[1641674805057,27.66479,138.07,137.92,59.32958]
[1641674805358,27.66479,138.07,137.97,4.0]
[1641674806058,27.66479,138.07,137.94,4.0]
[1641674806760,27.66479,138.04,137.9,4.0]
[1641674806959,27.66479,138.04,137.94,4.0]
[1641674807560,27.66479,138.04,137.97,4.0]
[1641674807759,27.66479,138.04,137.93,4.0]
[1641674807959,27.66479,138.04,137.98,4.0]
[1641674808158,27.66479,138.04,137.98,11.477]
[1641674808461,27.66479,138.04,138.0,4.0]
[1641674808661,27.66479,138.04,137.98,7.477]
[1641674808861,27.66479,138.04,138.02,4.0]
[1641674809160,27.66479,138.04,138.01,0.82267097]
[1641674809362,27.66479,138.04,138.03,0.82267097]
[1641674809763,27.66479,138.07,138.0,0.82267097]
[1641674810364,27.66479,138.07,137.99,0.82267097]
[1641674810963,27.66479,138.07,137.97,0.82267097]
[1641674812167,27.66479,138.07,137.96,0.82267097]
[1641674812365,27.66479,138.07,137.97,4.0]
[1641674812565,27.66479,138.07,138.01,4.0]
[1641674812965,27.66479,138.07,137.97,4.0]
[1641674813166,27.66479,138.07,138.01,4.0]
[1641674813366,27.66479,138.07,137.97,4.0]
[1641674813566,27.66479,138.07,138.02,0.82267097]
[1641674813966,27.66479,138.07,137.97,40.5199968]
[1641674814166,34.87279,138.07,137.97,40.5199968]
[1641674814367,34.87279,138.07,137.99,4.0]
[1641674814569,34.87279,138.07,137.98,4.82267097]
[1641674814869,7.208,138.07,138.06,4.0]
[1641674815270,36.78,138.08,138.06,4.0]
[1641674815467,36.78,138.08,138.06,4.82267097]
[1641674815668,36.78,138.08,138.07,4.0]
[1641674816271,36.78,138.08,138.0,4.0]
[1641674816469,69.45323851,138.08,138.03,4.0]
[1641674816970,44.77,138.08,138.05,4.0]
[1641674817173,44.77,138.08,137.96,8.729]
[1641674817369,44.77,138.08,137.96,10.54]
[1641674817569,36.78,138.12,137.96,10.54]
[1641674817971,36.78,138.12,137.97,0.82257584]
[1641674818171,40.78,138.12,137.97,0.82257584]
[1641674818372,36.78,138.09,137.97,0.82257584]
[1641674818574,36.78,138.07,137.97,0.82257584]
[1641674818772,36.78,138.05,137.97,0.82257584]
[1641674818972,36.78,138.05,137.95,0.82257584]
[1641674819374,4.0,137.96,137.95,0.00257584]
[1641674819573,12.722,137.96,137.93,17.1897628]
[1641674819774,4.0,137.94,137.9,21.10882465]
[1641674819975,8.722,137.96,137.9,119.62640603]
[1641674820277,4.0,137.92,137.9,116.62640603]
[1641674820474,7.493,137.92,137.9,116.62640603]
[1641674820675,7.493,137.92,137.9,6.03e-06]
[1641674821274,7.493,137.92,137.88,15.29776686]
[1641674821975,7.493,137.92,137.89,0.8234659]
[1641674822378,27.66479,137.95,137.89,0.8234659]
[1641674822576,27.66479,137.95,137.89,7.8644659]
[1641674822777,4.0,137.99,137.89,7.8644659]
[1641674822977,4.0,137.97,137.9,0.8234659]
[1641674823177,4.0,137.97,137.94,15.34503294]
[1641674823380,177.87319,138.0,137.94,15.34503294]
[1641674823579,4.0,137.99,137.94,15.34503294]
[1641674823781,4.0,137.97,137.94,15.34503294]
[1641674824179,16.46823761,137.99,137.93,15.34503294]
[1641674824380,4.0,137.94,137.93,15.34503294]
[1641674824680,4.0,137.94,137.89,15.30259501]
[1641674824881,27.66479,137.93,137.89,15.30259501]
[1641674825079,4.0,137.91,137.89,15.30259501]
[1641674825281,33.43079,137.93,137.9,1.38463126]
[1641674825480,4.0,137.91,137.9,1.38463126]
[1641674825680,33.43079,137.93,137.9,1.38463126]
[1641674825882,33.43079,137.93,137.84,27.66479]
[1641674826181,5.08749399,138.03,137.86,8.673]
[1641674826480,4.0,137.97,137.86,8.673]
[1641674826680,4.0,137.95,137.86,8.673]
[1641674827081,4.0,137.95,137.87,1.0026854]
[1641674827280,27.66479,137.97,137.87,1.0026854]
[1641674827481,4.0,137.95,137.87,1.0026854]
[1641674827682,27.66479,137.97,137.87,1.0026854]
[1641674827882,64.44479,137.97,137.87,1.0026854]
[1641674828082,27.66479,137.97,137.87,6.5436854]
[1641674828482,70.7911,138.0,137.87,5.541]
[1641674828683,70.7911,138.0,137.88,4.60657934]
[1641674828882,27.66479,138.05,137.92,27.66479]
[1641674829082,27.66479,138.05,137.92,33.68979]
[1641674829282,31.66479,138.05,137.92,33.68979]
[1641674829483,4.0,138.03,137.93,3.79726474]
[1641674829683,27.66479,138.05,137.93,3.79726474]
[1641674830186,27.66479,138.05,137.94,1.0026854]
[1641674830584,27.66479,138.05,137.94,3.79726474]
[1641674830784,4.0,138.04,137.94,3.79726474]
[1641674831283,4.0,138.04,137.95,1.0026854]
[1641674831684,27.66479,138.05,137.95,1.0026854]
[1641674831886,27.66479,138.05,137.93,1.0026854]
[1641674832086,4.0,138.03,137.93,1.0026854]
[1641674832486,97.77429,138.05,137.93,1.0026854]
[1641674832687,4.0,138.02,137.96,2.79457934]
[1641674832885,27.66479,138.01,137.96,2.79457934]
[1641674833286,27.66479,138.01,137.94,2.79457934]
[1641674833486,27.66479,138.01,137.97,1.0026854]
[1641674833888,27.66479,138.01,137.95,1.0026854]
[1641674834089,4.0,137.99,137.95,1.0026854]
[1641674834289,4.0,137.98,137.95,1.0026854]
[1641674834490,34.23679,138.01,137.95,1.0026854]
[1641674834689,4.0,137.99,137.95,1.0026854]
[1641674834894,4.0,137.96,137.9,27.66479]
[1641674835093,11.953,137.96,137.9,27.66479]
[1641674835293,11.953,137.96,137.91,1.0026854]
[1641674835491,4.0,137.94,137.91,1.0026854]
[1641674835692,4.0,137.95,137.91,1.0026854]
[1641674835894,11.953,137.96,137.89,1.0026854]
[1641674836292,69.1884,137.98,137.89,1.0026854]
[1641674836691,4.0,138.0,137.89,7.2616854]
[1641674836893,27.66479,138.01,137.93,27.66479]
[1641674837092,66.8843,138.03,137.93,34.16879]
[1641674837498,4.0,138.02,137.93,34.16879]
[1641674837695,66.8843,138.03,137.94,1.0026854]
[1641674838295,4.0,138.02,137.94,1.0026854]
[1641674838496,66.8843,138.03,137.94,1.0026854]
[1641674838696,70.8843,138.03,137.94,1.0026854]
[1641674839095,66.8843,138.03,137.94,1.0026854]
[1641674839898,70.8843,138.03,137.94,11.85971718]
[1641674840201,66.8843,138.03,137.94,11.85971718]
[1641674840400,4.0,138.01,137.94,11.85971718]
[1641674840598,4.0,138.01,137.95,1.0026854]
[1641674840798,66.8843,138.03,137.95,1.0026854]
[1641674841699,4.0,138.02,137.95,1.0026854]
[1641674841900,66.8843,138.03,137.95,1.0026854]
[1641674842100,4.0,138.02,137.95,1.0026854]
[1641674842700,66.8843,138.03,137.95,1.0026854]
[1641674842905,97.77429,138.05,137.99,27.66479]
[1641674843101,27.66479,138.07,137.99,35.55179]
[1641674843303,4.0,138.09,137.99,35.55179]
[1641674843701,4.0,138.08,138.0,1.0026854]
[1641674843904,138.4345,138.11,138.0,1.0026854]
[1641674844102,70.7642,138.11,138.0,1.0026854]
[1641674844302,70.7642,138.11,138.0,2.8126854]
[1641674844505,81.0521,138.14,138.0,2.8126854]
[1641674844703,4.0,138.12,138.01,1.0026854]
[1641674844906,27.66479,138.11,138.04,27.66479]
[1641674845104,27.66479,138.11,138.01,1.0026854]
[1641674845105,4.0,138.08,138.01,1.0026854]
[1641674845306,5.963,138.08,138.01,1.0026854]
[1641674846105,9.963,138.08,138.01,41.69806026]
[1641674846405,4.0,138.07,138.01,41.69806026]
[1641674846805,4.0,138.07,138.02,1.0026854]